[Event "GER-ch Youth U14w 2019"]
[Site "Willingen"]
[Date "2019.06.12"]
[Round "6.3"]
[White "Schmidt, Pauline"]
[Black "Yue, Qizhou"]
[Result "1/2-1/2"]
[ECO "B44"]
[WhiteElo "1620"]
[BlackElo "1840"]
[Annotator "NA"]
[PlyCount "77"]
[EventDate "2019.06.07"]
[EventType "swiss"]
[EventRounds "9"]
[EventCountry "GER"]
[SourceTitle "playchess.com"]
[Source "ChessBase"]
[SourceQuality "1"]
[TimeControl "40/5400+30:1800+30"]

1. e4 {[%emt 0:00:00]} c5 {[%emt 0:00:00]} 2. Nf3 {[%emt 0:00:00]} e6 {[%emt 0:00:00]} 3. d4 {[%emt 0:00:28]} cxd4 {[%emt 0:00:05]} 4. Nxd4 {[%emt 0:00:06]} Nc6 {[%emt 0:00:12]} 5. Nxc6 {[%emt 0:00:46]} bxc6 {[%emt 0:00:29]} 6. Bd3 {[%emt 0:00:34]} Nf6 {[%emt 0:00:22]} 7. Qe2 {[%emt 0:00:50]} Bc5 {[%emt 0:03:28]} 8. O-O {[%emt 0:02:24]} O-O {[%emt 0:00:58]} 9. b3 {[%emt 0:02:15]} e5 {[%emt 0:06:01]} 10. Kh1 {[%emt 0:06:36]} Qc7 {[%emt 0:05:16]} 11. Bg5 {[%emt 0:07:21]} d5 {[%emt 0:01:51]} 12. Bxf6 {[%emt 0:05:21]} gxf6 {[%emt 0:00:10]} 13. Qh5 {[%emt 0:00:44]} d4 {[%emt 0:10:10]} 14. f4 {[%emt 0:06:59]} Kh8 {[%emt 0:01:37]} 15. f5 {[%emt 0:20:45]} Rg8 {[%emt 0:02:09]} 16. Bc4 {[%emt 0:02:22]} Rg7 {[%emt 0:01:09]} 17. Qh6 {[%emt 0:02:14]} Qe7 {[%emt 0:03:08]} 18. Rf3 {[%emt 0:04:54]} Bb7 {[%emt 0:01:11]} 19. Rh3 {[%emt 0:01:14]} Bb6 {[%emt 0:00:50]} 20. Nd2 {[%emt 0:04:22]} c5 {[%emt 0:01:21]} 21. Bd3 {[%emt 0:01:05]} Bd8 {[%emt 0:03:45]} 22. Rf1 {[%emt 0:03:49]} Qf8 {[%emt 0:04:47]} 23. Rff3 {[%emt 0:01:12]} Be7 {[%emt 0:01:27]} 24. Rh4 {[%emt 0:02:04]} Qg8 {[%emt 0:00:41]} 25. Rfh3 {[%emt 0:00:48]} a5 {[%emt 0:00:37]} 26. a4 {[%emt 0:03:55]} Bc6 {[%emt 0:00:36]} 27. Nf3 {[%emt 0:04:54]} Rb8 {[%emt 0:01:55]} 28. Rh5 {[%emt 0:05:15]} c4 {[%emt 0:01:48]} 29. Bxc4 {[%emt 0:07:46]} Bxe4 {[%emt 0:01:31]} 30. Ng5 {[%emt 0:00:30]} Bxg2+ {[%emt 0:01:16]} 31. Kxg2 {[%emt 0:00:56]} Rxg5+ {[%emt 0:00:23]} 32. Rxg5 {[%emt 0:00:27]} Qxg5+ {[%emt 0:00:17]} 33. Qxg5 {[%emt 0:00:22]} fxg5 {[%emt 0:00:07]} 34. Bxf7 {[%emt 0:00:19]} Rc8 {[%emt 0:07:13]} 35. Bc4 {[%emt 0:01:38]} Kg7 {[%emt 0:00:20]} 36. Bd3 {[%emt 0:01:23]} Bf6 {[%emt 0:00:42]} 37. Kf3 {[%emt 0:00:44]} Rh8 {[%emt 0:01:13]} 38. Kg4 {[%emt 0:00:51]} Rc8 {[%emt 0:00:41]} 39. Kf3 {[%emt 0:00:15] normal} 1/2-1/2

[Event "GER-ch Youth U14w 2019"]
[Site "Willingen"]
[Date "2019.06.12"]
[Round "6.4"]
[White "Butenandt, Svenja"]
[Black "Kalina, Lena"]
[Result "1-0"]
[ECO "E91"]
[WhiteElo "1722"]
[BlackElo "1687"]
[Annotator "NA"]
[PlyCount "54"]
[EventDate "2019.06.07"]
[EventType "swiss"]
[EventRounds "9"]
[EventCountry "GER"]
[SourceTitle "playchess.com"]
[Source "ChessBase"]
[SourceQuality "1"]
[TimeControl "40/5400+30:1800+30"]

1. d4 {[%emt 0:00:00]} Nf6 {[%emt 0:00:00]} 2. c4 {[%emt 0:00:00]} g6 {[%emt 0:00:00]} 3. Nc3 {[%emt 0:00:00]} Bg7 {[%emt 0:00:00]} 4. e4 {[%emt 0:00:00]} d6 {[%emt 0:00:15]} 5. Nf3 {[%emt 0:00:00]} O-O {[%emt 0:00:20]} 6. Be2 {[%emt 0:00:00]} Bg4 {[%emt 0:00:17]} 7. Be3 {[%emt 0:02:05]} Nfd7 {[%emt 0:01:22]} 8. Rc1 {[%emt 0:02:46]} Nc6 {[%emt 0:02:01]} 9. d5 {[%emt 0:03:15]} Bxf3 {[%emt 0:02:14]} 10. Bxf3 {[%emt 0:05:02]} Nce5 {[%emt 0:02:49]} 11. Be2 {[%emt 0:00:24]} Nc5 {[%emt 0:03:28]} 12. b4 {[%emt 0:02:45]} Na6 {[%emt 0:02:19]} 13. a3 c6 {[%emt 0:04:07]} 14. dxc6 {[%emt 0:05:40]} bxc6 {[%emt 0:02:05]} 15. c5 {[%emt 0:01:24]} Nc7 {[%emt 0:03:24]} 16. f4 {[%emt 0:01:01]} Nd7 {[%emt 0:02:52]} 17. cxd6 {[%emt 0:00:14]} exd6 {[%emt 0:05:16]} 18. Qxd6 {[%emt 0:01:13]} Ne8 {[%emt 0:06:38]} 19. Qd2 {[%emt 0:02:25]} Qe7 {[%emt 0:07:11]} 20. e5 {[%emt 0:03:47]} a5 {[%emt 0:06:00]} 21. Ne4 {[%emt 0:06:51]} axb4 {[%emt 0:02:29]} 22. axb4 {[%emt 0:00:47]} Rc8 {[%emt 0:02:20]} 23. Rd1 {[%emt 0:03:08]} Rc7 {[%emt 0:01:46]} 24. Nc5 {[%emt 0:06:21]} Nb6 {[%emt 0:03:30]} 25. Na6 {[%emt 0:01:56]} Rd7 {[%emt 0:00:50]} 26. Qc1 {[%emt 0:07:24]} Rxd1+ {[%emt 0:00:56]} 27. Qxd1 {[%emt 0:00:50]} Nd7 {[%emt 0:00:21] normal} 1-0

[Event "GER-ch Youth U14w 2019"]
[Site "Willingen"]
[Date "2019.06.12"]
[Round "6.5"]
[White "Gerber, Anna Sophie"]
[Black "Adelhardt, Lisa"]
[Result "1-0"]
[ECO "E18"]
[WhiteElo "1473"]
[BlackElo "1293"]
[Annotator "NA"]
[PlyCount "25"]
[EventDate "2019.06.07"]
[EventType "swiss"]
[EventRounds "9"]
[EventCountry "GER"]
[SourceTitle "playchess.com"]
[Source "ChessBase"]
[SourceQuality "1"]
[TimeControl "40/5400+30:1800+30"]

1. d4 {[%emt 0:00:00]} Nf6 {[%emt 0:00:04]} 2. Nf3 {[%emt 0:00:00]} e6 {[%emt 0:00:41]} 3. g3 {[%emt 0:00:18]} b6 {[%emt 0:03:02]} 4. Bg2 {[%emt 0:00:32]} Bb7 {[%emt 0:01:15]} 5. O-O {[%emt 0:00:40]} Be7 {[%emt 0:03:21]} 6. c4 {[%emt 0:00:43]} O-O {[%emt 0:01:14]} 7. Nc3 {[%emt 0:00:34]} d5 {[%emt 0:06:49]} 8. b3 {[%emt 0:02:26]} dxc4 {[%emt 0:07:26]} 9. bxc4 {[%emt 0:00:58]} c5 {[%emt 0:03:32]} 10. d5 {[%emt 0:03:22]} exd5 {[%emt 0:01:05]} 11. Ne1 {[%emt 0:04:33]} Ba6 {[%emt 0:10:45]} 12. cxd5 {[%emt 0:03:11]} Qd6 {[%emt 0:06:13] normal} 13. Bf4 {[%emt 0:04:40] normal} 1-0

[Event "GER-ch Youth U14w 2019"]
[Site "Willingen"]
[Date "2019.06.12"]
[Round "6.6"]
[White "Albayrak, Nese Pinar"]
[Black "Orlova, Alicia"]
[Result "0-1"]
[ECO "C72"]
[WhiteElo "1530"]
[BlackElo "1490"]
[Annotator "NA"]
[PlyCount "108"]
[EventDate "2019.06.07"]
[EventType "swiss"]
[EventRounds "9"]
[EventCountry "GER"]
[SourceTitle "playchess.com"]
[Source "ChessBase"]
[SourceQuality "1"]
[TimeControl "40/5400+30:1800+30"]

1. e4 {[%emt 0:00:00]} e5 {[%emt 0:00:00]} 2. Nf3 {[%emt 0:00:00]} Nc6 {[%emt 0:00:00]} 3. Bb5 {[%emt 0:00:00]} a6 {[%emt 0:00:00]} 4. Ba4 {[%emt 0:00:11]} d6 {[%emt 0:00:16]} 5. O-O {[%emt 0:00:39]} Bd7 {[%emt 0:00:21]} 6. c3 {[%emt 0:00:40]} Nge7 {[%emt 0:00:24]} 7. Re1 {[%emt 0:00:46]} Ng6 {[%emt 0:00:35]} 8. d3 {[%emt 0:03:35]} Be7 {[%emt 0:01:54]} 9. Nbd2 {[%emt 0:02:52]} O-O {[%emt 0:01:01]} 10. Nf1 {[%emt 0:02:20]} Kh8 {[%emt 0:03:24]} 11. Ng3 {[%emt 0:04:10]} f5 {[%emt 0:04:04]} 12. exf5 {[%emt 0:02:40]} Bxf5 {[%emt 0:00:18]} 13. Nxf5 {[%emt 0:02:45]} Rxf5 {[%emt 0:00:09]} 14. Bc2 {[%emt 0:00:27]} Rf7 {[%emt 0:22:04]} 15. d4 {[%emt 0:11:33]} Nh4 {[%emt 0:01:53]} 16. Re3 {[%emt 0:20:26]} Nxf3+ {[%emt 0:03:21]} 17. Rxf3 {[%emt 0:01:13]} Rxf3 {[%emt 0:00:20]} 18. Qxf3 {[%emt 0:00:46]} exd4 {[%emt 0:00:38]} 19. Qe4 {[%emt 0:06:13]} g6 {[%emt 0:00:46]} 20. cxd4 {[%emt 0:01:43]} Bf6 {[%emt 0:00:43]} 21. d5 {[%emt 0:05:26]} Nd4 {[%emt 0:00:35]} 22. Bd3 {[%emt 0:03:22]} Qe8 {[%emt 0:03:33]} 23. Kf1 {[%emt 0:14:30]} Qf7 {[%emt 0:02:24]} 24. Bg5 {[%emt 0:07:05]} Be5 {[%emt 0:03:36]} 25. Be3 {[%emt 0:03:48]} Nf5 {[%emt 0:06:36]} 26. Kg1 {[%emt 0:03:43]} Re8 {[%emt 0:01:13]} 27. Qf3 {[%emt 0:00:45]} Rf8 {[%emt 0:03:41]} 28. Rb1 {[%emt 0:01:46]} Qg8 {[%emt 0:03:58]} 29. Bxf5 {[%emt 0:00:32]} Rxf5 {[%emt 0:00:41]} 30. Qe4 {[%emt 0:00:26]} Bg7 {[%emt 0:01:21]} 31. Qd3 {[%emt 0:00:36]} Qxd5 {[%emt 0:02:06]} 32. Qxd5 {[%emt 0:00:16]} Rxd5 {[%emt 0:00:06]} 33. b3 {[%emt 0:00:10]} Re5 {[%emt 0:02:43]} 34. Rc1 {[%emt 0:00:27]} c6 {[%emt 0:00:53]} 35. Kf1 {[%emt 0:00:32]} d5 {[%emt 0:00:25]} 36. Rd1 {[%emt 0:00:36]} Re8 {[%emt 0:01:12]} 37. a4 {[%emt 0:00:34]} Kg8 {[%emt 0:01:35]} 38. b4 {[%emt 0:00:45]} Bc3 {[%emt 0:01:16]} 39. b5 {[%emt 0:00:12]} Rd8 {[%emt 0:09:04]} 40. bxc6 {[%emt 0:00:54]} bxc6 {[%emt 0:00:09]} 41. Ke2 {[%emt 0:01:06]} d4 {[%emt 0:00:29]} 42. Bc1 {[%emt 0:08:21]} c5 {[%emt 0:01:17]} 43. Kd3 {[%emt 0:00:14]} Kf7 {[%emt 0:02:37]} 44. Kc4 {[%emt 0:01:51]} Bb4 {[%emt 0:00:50]} 45. Bb2 {[%emt 0:01:17]} a5 {[%emt 0:03:23]} 46. Rd3 {[%emt 0:01:18]} Re8 {[%emt 0:00:23]} 47. Ba3 {[%emt 0:02:39]} Rc8 {[%emt 0:13:09]} 48. Rb3 {[%emt 0:02:48]} Ke6 {[%emt 0:00:36]} 49. Bxb4 {[%emt 0:02:16]} axb4 {[%emt 0:01:04]} 50. a5 {[%emt 0:00:45]} Kd6 {[%emt 0:00:40]} 51. Rh3 {[%emt 0:03:56]} Rf8 {[%emt 0:01:49]} 52. a6 {[%emt 0:05:40]} Rxf2 {[%emt 0:00:33]} 53. Ra3 {[%emt 0:03:42]} bxa3 {[%emt 0:00:39]} 54. a7 {[%emt 0:00:09]} Rf8 {[%emt 0:00:09] normal} 0-1

[Event "GER-ch Youth U14w 2019"]
[Site "Willingen"]
[Date "2019.06.12"]
[Round "6.7"]
[White "Oswald, Hannah"]
[Black "Peglau, Mirjam"]
[Result "0-1"]
[ECO "B13"]
[WhiteElo "1632"]
[BlackElo "1746"]
[Annotator "NA"]
[PlyCount "95"]
[EventDate "2019.06.07"]
[EventType "swiss"]
[EventRounds "9"]
[EventCountry "GER"]
[SourceTitle "playchess.com"]
[Source "ChessBase"]
[SourceQuality "1"]
[TimeControl "40/5400+30:1800+30"]

1. e4 {[%emt 0:00:00]} c6 {[%emt 0:00:00]} 2. d4 {[%emt 0:00:00]} d5 {[%emt 0:00:00]} 3. exd5 {[%emt 0:00:07]} cxd5 {[%emt 0:00:00]} 4. Bd3 {[%emt 0:00:14]} Nc6 {[%emt 0:00:00]} 5. c3 {[%emt 0:00:16]} Nf6 {[%emt 0:00:00]} 6. Bf4 {[%emt 0:00:28]} Bd7 {[%emt 0:01:49]} 7. Nd2 {[%emt 0:04:41]} e6 {[%emt 0:00:06]} 8. Ngf3 {[%emt 0:00:10]} Be7 {[%emt 0:00:14]} 9. O-O {[%emt 0:01:45]} O-O {[%emt 0:00:17]} 10. Re1 {[%emt 0:07:46]} Rc8 {[%emt 0:00:51]} 11. Ne5 {[%emt 0:06:25]} a6 {[%emt 0:00:46]} 12. Ndf3 {[%emt 0:09:57]} b5 {[%emt 0:05:17]} 13. Nxc6 {[%emt 0:03:44]} Bxc6 {[%emt 0:00:15]} 14. a3 {[%emt 0:03:03]} Nd7 {[%emt 0:01:57]} 15. Ne5 {[%emt 0:04:04]} Nxe5 {[%emt 0:05:50]} 16. Bxe5 {[%emt 0:01:32]} Bd6 {[%emt 0:01:46]} 17. Re3 {[%emt 0:14:58]} f5 {[%emt 0:04:57]} 18. Qe2 {[%emt 0:06:42]} Bxe5 {[%emt 0:01:10]} 19. Rxe5 {[%emt 0:00:15]} Bd7 {[%emt 0:00:11]} 20. Qh5 {[%emt 0:03:37]} Rf6 {[%emt 0:02:29]} 21. h3 {[%emt 0:02:30]} Rh6 {[%emt 0:01:50]} 22. Qe2 {[%emt 0:00:49]} Qg5 {[%emt 0:01:24]} 23. Kh1 {[%emt 0:01:09]} Rf8 {[%emt 0:04:15]} 24. a4 {[%emt 0:04:34]} bxa4 {[%emt 0:03:49]} 25. Bxa6 {[%emt 0:00:13]} Rff6 {[%emt 0:01:24]} 26. Re3 {[%emt 0:03:06]} f4 {[%emt 0:05:39]} 27. Re5 {[%emt 0:04:55]} Qh4 {[%emt 0:04:48]} 28. f3 {[%emt 0:05:34]} Rfg6 {[%emt 0:01:04]} 29. Rf1 {[%emt 0:06:58]} Rg3 {[%emt 0:07:18]} 30. Rf2 {[%emt 0:01:09]} Qf6 {[%emt 0:12:00]} 31. Bb5 {[%emt 0:01:33]} Bc8 {[%emt 0:08:03]} 32. Bxa4 {[%emt 0:00:31]} Qg6 {[%emt 0:00:04]} 33. Qf1 {[%emt 0:00:56]} Rh4 {[%emt 0:02:35]} 34. Kh2 {[%emt 0:00:39]} Rgxh3+ {[%emt 0:01:00]} 35. gxh3 {[%emt 0:00:17]} Qg3+ {[%emt 0:00:05]} 36. Kh1 {[%emt 0:00:13]} Rxh3+ {[%emt 0:00:05]} 37. Qxh3 {[%emt 0:00:07]} Qxh3+ {[%emt 0:00:08]} 38. Kg1 {[%emt 0:01:11]} Qg3+ {[%emt 0:00:22]} 39. Rg2 {[%emt 0:00:44]} Qxf3 {[%emt 0:00:07]} 40. Reg5 {[%emt 0:00:55]} Qe3+ {[%emt 0:00:36]} 41. Kh2 {[%emt 0:31:27]} g6 {[%emt 0:30:17]} 42. Re5 {[%emt 0:00:48]} Qf3 {[%emt 0:05:19]} 43. Kg1 {[%emt 0:00:00]} Kf7 {[%emt 0:00:00]} 44. Rf2 {[%emt 0:00:00]} Qg3+ {[%emt 0:00:00]} 45. Rg2 {[%emt 0:00:00]} Qd3 {[%emt 0:00:00]} 46. Rf2 {[%emt 0:00:00]} Qb1+ {[%emt 0:00:00] normal} 47. Kg2 {[%emt 0:00:00]} Qc1 {[%emt 0:00:00]} 48. Bb5 {[%emt 0:00:00] normal} 0-1

[Event "GER-ch Youth U14w 2019"]
[Site "Willingen"]
[Date "2019.06.12"]
[Round "6.8"]
[White "Heutling, Elina"]
[Black "Wagner, Margarethe"]
[Result "1-0"]
[ECO "B90"]
[WhiteElo "1712"]
[BlackElo "1741"]
[Annotator "NA"]
[PlyCount "52"]
[EventDate "2019.06.07"]
[EventType "swiss"]
[EventRounds "9"]
[EventCountry "GER"]
[SourceTitle "playchess.com"]
[Source "ChessBase"]
[SourceQuality "1"]
[TimeControl "40/5400+30:1800+30"]

1. e4 {[%emt 0:00:00]} c5 {[%emt 0:00:00]} 2. Nf3 {[%emt 0:00:00]} d6 {[%emt 0:00:00]} 3. d4 {[%emt 0:00:00]} cxd4 {[%emt 0:00:00]} 4. Nxd4 {[%emt 0:00:00]} Nf6 {[%emt 0:00:04]} 5. Nc3 {[%emt 0:00:05]} a6 {[%emt 0:00:19]} 6. Qf3 {[%emt 0:01:12]} Bg4 {[%emt 0:07:14]} 7. Qg3 {[%emt 0:06:17]} e5 {[%emt 0:05:17]} 8. Nf5 {[%emt 0:03:52]} Bxf5 {[%emt 0:05:41]} 9. exf5 {[%emt 0:00:21]} Nc6 {[%emt 0:01:48]} 10. Bg5 {[%emt 0:02:12]} Be7 {[%emt 0:06:46]} 11. Bxf6 {[%emt 0:04:25]} Bxf6 {[%emt 0:00:16]} 12. O-O-O {[%emt 0:02:18]} Nd4 {[%emt 0:07:54]} 13. Bd3 {[%emt 0:24:46]} Rc8 {[%emt 0:09:17]} 14. Nd5 {[%emt 0:03:56]} Rxc2+ {[%emt 0:02:12]} 15. Kb1 {[%emt 0:01:18]} Rc5 {[%emt 0:01:43]} 16. Be4 {[%emt 0:03:47]} a5 {[%emt 0:05:13]} 17. h4 {[%emt 0:14:16]} b5 {[%emt 0:04:17]} 18. Qh3 {[%emt 0:02:43]} b4 {[%emt 0:07:39]} 19. g4 {[%emt 0:02:59]} h6 {[%emt 0:00:28]} 20. Qg3 {[%emt 0:02:09]} Kd7 {[%emt 0:10:32]} 21. f4 {[%emt 0:09:49]} b3 {[%emt 0:05:03]} 22. axb3 {[%emt 0:06:05]} Re8 {[%emt 0:02:36]} 23. fxe5 {[%emt 0:02:28]} Bxe5 {[%emt 0:00:12]} 24. Qe3 {[%emt 0:00:49]} Nc6 {[%emt 0:03:34]} 25. Nf6+ {[%emt 0:02:06]} Qxf6 {[%emt 0:02:25]} 26. Qxc5 {[%emt 0:00:27]} Rc8 {[%emt 0:01:15] normal} 1-0

[Event "GER-ch Youth U14w 2019"]
[Site "Willingen"]
[Date "2019.06.12"]
[Round "6.9"]
[White "Bildat, Emilia"]
[Black "Liu, Sijia Anna"]
[Result "1-0"]
[ECO "A15"]
[WhiteElo "1649"]
[BlackElo "1705"]
[Annotator "NA"]
[PlyCount "102"]
[EventDate "2019.06.07"]
[EventType "swiss"]
[EventRounds "9"]
[EventCountry "GER"]
[SourceTitle "playchess.com"]
[Source "ChessBase"]
[SourceQuality "1"]
[TimeControl "40/5400+30:1800+30"]

1. c4 {[%emt 0:00:00]} Nf6 {[%emt 0:00:00]} 2. g3 {[%emt 0:00:00]} g6 {[%emt 0:00:09]} 3. Bg2 {[%emt 0:00:00]} Bg7 {[%emt 0:00:17]} 4. Nc3 {[%emt 0:00:00]} d6 5. d3 {[%emt 0:01:25]} c5 {[%emt 0:02:36]} 6. Nf3 {[%emt 0:00:30]} O-O {[%emt 0:02:16]} 7. O-O {[%emt 0:00:24]} a6 {[%emt 0:01:40]} 8. a3 {[%emt 0:01:07]} Nc6 {[%emt 0:03:23]} 9. Rb1 {[%emt 0:01:46]} Rb8 {[%emt 0:03:55]} 10. b4 {[%emt 0:01:32]} cxb4 {[%emt 0:02:37]} 11. axb4 {[%emt 0:00:08]} b5 {[%emt 0:00:24]} 12. cxb5 {[%emt 0:00:21]} axb5 {[%emt 0:00:45]} 13. Bd2 {[%emt 0:00:31]} Bd7 {[%emt 0:06:10]} 14. Qb3 {[%emt 0:03:56]} h6 {[%emt 0:07:35]} 15. Rfc1 {[%emt 0:03:30]} Qb6 {[%emt 0:02:13]} 16. Be3 {[%emt 0:03:08]} Qb7 {[%emt 0:02:24]} 17. Nd4 {[%emt 0:07:07]} Nxd4 {[%emt 0:04:45]} 18. Bxd4 {[%emt 0:00:37]} Be6 {[%emt 0:04:24]} 19. Bxb7 {[%emt 0:04:10]} Bxb3 {[%emt 0:00:28]} 20. Bc6 {[%emt 0:01:13]} Ba4 {[%emt 0:09:51]} 21. Nxa4 {[%emt 0:00:42]} bxa4 {[%emt 0:00:33]} 22. b5 {[%emt 0:12:24]} Ng4 {[%emt 0:08:17]} 23. Bxg7 {[%emt 0:01:59]} Kxg7 {[%emt 0:02:44]} 24. b6 {[%emt 0:01:29]} a3 {[%emt 0:04:16]} 25. b7 {[%emt 0:00:41]} Ne5 {[%emt 0:02:23]} 26. Bg2 {[%emt 0:01:44]} e6 {[%emt 0:05:15]} 27. d4 {[%emt 0:02:05]} Nd7 {[%emt 0:01:51]} 28. Bc6 {[%emt 0:02:40]} Nf6 {[%emt 0:04:01]} 29. Ra1 {[%emt 0:05:47]} d5 {[%emt 0:01:39]} 30. Rxa3 {[%emt 0:01:02]} Ne4 {[%emt 0:01:19]} 31. Ra8 {[%emt 0:02:36]} Nd6 {[%emt 0:00:52]} 32. e3 {[%emt 0:04:58]} Kf6 {[%emt 0:06:32]} 33. Rca1 {[%emt 0:01:51]} Kg7 {[%emt 0:00:51]} 34. Rxb8 {[%emt 0:01:52]} Rxb8 {[%emt 0:00:07]} 35. Ra8 {[%emt 0:02:19]} Rxb7 {[%emt 0:00:46]} 36. Bxb7 {[%emt 0:00:06]} Nxb7 {[%emt 0:00:05]} 37. Ra7 {[%emt 0:00:13]} Nd6 {[%emt 0:00:53]} 38. f3 {[%emt 0:00:33]} Kf6 {[%emt 0:03:10]} 39. Ra6 {[%emt 0:01:00]} Ke7 {[%emt 0:01:15]} 40. Ra7+ {[%emt 0:00:38]} Kf6 {[%emt 0:00:20]} 41. Rd7 {[%emt 0:30:17]} Nf5 {[%emt 0:08:26]} 42. Kf2 {[%emt 0:00:00]} g5 {[%emt 0:11:51]} 43. g4 {[%emt 0:00:00]} Nh4 {[%emt 0:01:33]} 44. e4 {[%emt 0:00:00]} dxe4 {[%emt 0:00:26]} 45. fxe4 {[%emt 0:00:00]} Ng6 {[%emt 0:00:35]} 46. Rc7 {[%emt 0:00:00]} Nf4 {[%emt 0:01:21]} 47. Rc3 {[%emt 0:00:00]} Ke7 {[%emt 0:01:53]} 48. Rf3 {[%emt 0:00:00]} Ng6 {[%emt 0:01:07]} 49. Kg3 {[%emt 0:00:00]} Kf8 {[%emt 0:03:03]} 50. d5 {[%emt 0:00:00]} exd5 {[%emt 0:00:35]} 51. exd5 {[%emt 0:00:00] normal} Ke7 {[%emt 0:03:28] normal} 1-0

[Event "GER-ch Youth U14w 2019"]
[Site "Willingen"]
[Date "2019.06.12"]
[Round "6.10"]
[White "Zoellner, Bente"]
[Black "Becker, Linda"]
[Result "1/2-1/2"]
[ECO "D35"]
[WhiteElo "1530"]
[BlackElo "1683"]
[Annotator "NA"]
[PlyCount "51"]
[EventDate "2019.06.07"]
[EventType "swiss"]
[EventRounds "9"]
[EventCountry "GER"]
[SourceTitle "playchess.com"]
[Source "ChessBase"]
[SourceQuality "1"]
[TimeControl "40/5400+30:1800+30"]

1. d4 {[%emt 0:00:00]} d5 {[%emt 0:00:00]} 2. c4 {[%emt 0:00:00]} e6 {[%emt 0:00:00]} 3. Nc3 {[%emt 0:00:00]} Nf6 {[%emt 0:00:00]} 4. cxd5 {[%emt 0:00:04]} exd5 {[%emt 0:00:10]} 5. Bg5 {[%emt 0:00:12]} Be7 {[%emt 0:00:41]} 6. e3 {[%emt 0:00:18]} c6 {[%emt 0:00:28]} 7. Bd3 {[%emt 0:00:15]} h6 {[%emt 0:00:53]} 8. Bh4 {[%emt 0:00:27]} Nbd7 {[%emt 0:01:07]} 9. Nge2 {[%emt 0:00:26]} Nh5 {[%emt 0:01:07]} 10. Bxe7 {[%emt 0:01:09]} Qxe7 {[%emt 0:00:09]} 11. O-O {[%emt 0:00:31]} O-O {[%emt 0:01:11]} 12. Qc2 {[%emt 0:01:02]} Nhf6 {[%emt 0:02:33]} 13. Rae1 {[%emt 0:01:00]} b6 {[%emt 0:00:39]} 14. Ng3 {[%emt 0:04:25]} c5 {[%emt 0:01:55]} 15. h3 {[%emt 0:04:27]} Bb7 {[%emt 0:05:09]} 16. b3 {[%emt 0:03:51]} Qd8 {[%emt 0:03:02]} 17. Re2 {[%emt 0:09:01]} a6 {[%emt 0:02:19]} 18. a4 {[%emt 0:01:33]} Rc8 {[%emt 0:01:12]} 19. Rc1 {[%emt 0:05:01]} Nb8 {[%emt 0:07:26]} 20. Qb1 {[%emt 0:06:44]} Nc6 {[%emt 0:04:04]} 21. dxc5 {[%emt 0:03:12]} bxc5 {[%emt 0:00:23]} 22. Rec2 {[%emt 0:01:23]} Nb4 {[%emt 0:01:51]} 23. Rd2 {[%emt 0:02:08]} Nxd3 {[%emt 0:01:15]} 24. Rxd3 {[%emt 0:00:39]} Qb6 {[%emt 0:02:43]} 25. Nf5 {[%emt 0:05:24]} Rc7 {[%emt 0:03:11]} 26. Ne2 {[%emt 0:07:01] normal} 1/2-1/2

[Event "GER-ch Youth U14w 2019"]
[Site "Willingen"]
[Date "2019.06.12"]
[Round "6.11"]
[White "Berghold, Lotta"]
[Black "Petersen, Sophie"]
[Result "1/2-1/2"]
[ECO "D05"]
[WhiteElo "1471"]
[BlackElo "1430"]
[Annotator "NA"]
[PlyCount "79"]
[EventDate "2019.06.07"]
[EventType "swiss"]
[EventRounds "9"]
[EventCountry "GER"]
[SourceTitle "playchess.com"]
[Source "ChessBase"]
[SourceQuality "1"]
[TimeControl "40/5400+30:1800+30"]

1. d4 {[%emt 0:00:00]} d5 {[%emt 0:00:00]} 2. Nf3 {[%emt 0:00:00]} Nf6 {[%emt 0:00:00]} 3. e3 {[%emt 0:00:00]} e6 {[%emt 0:00:13]} 4. Bd3 {[%emt 0:00:00]} Be7 {[%emt 0:00:22]} 5. Nbd2 {[%emt 0:00:00]} O-O {[%emt 0:01:03]} 6. O-O {[%emt 0:00:04]} b6 {[%emt 0:00:26]} 7. e4 {[%emt 0:02:19]} Bb7 {[%emt 0:01:21]} 8. e5 {[%emt 0:01:00]} Nfd7 {[%emt 0:00:40]} 9. Re1 {[%emt 0:01:25]} c5 {[%emt 0:00:27]} 10. c3 {[%emt 0:00:28]} Nc6 {[%emt 0:00:45]} 11. a3 {[%emt 0:01:05]} Qc7 {[%emt 0:01:58]} 12. Nf1 {[%emt 0:10:36]} Rfd8 {[%emt 0:05:10]} 13. Ng3 {[%emt 0:13:56]} Nf8 {[%emt 0:03:47]} 14. Qe2 {[%emt 0:21:53]} Rac8 {[%emt 0:04:09]} 15. Bd2 {[%emt 0:00:42]} Na5 {[%emt 0:01:59]} 16. Rab1 {[%emt 0:04:13]} Nb3 {[%emt 0:02:22]} 17. Qd1 {[%emt 0:01:04]} Nxd2 {[%emt 0:00:32]} 18. Qxd2 {[%emt 0:00:05]} Ng6 {[%emt 0:00:59]} 19. Rbc1 {[%emt 0:07:25]} Qd7 {[%emt 0:01:47]} 20. Ne2 {[%emt 0:06:24]} a5 {[%emt 0:07:49]} 21. Rc2 {[%emt 0:06:23]} c4 {[%emt 0:01:44]} 22. Bxg6 {[%emt 0:00:12]} hxg6 {[%emt 0:00:22]} 23. Qf4 {[%emt 0:02:26]} b5 {[%emt 0:02:49]} 24. Ng3 {[%emt 0:03:14]} b4 {[%emt 0:00:50]} 25. axb4 {[%emt 0:00:06]} axb4 {[%emt 0:00:17]} 26. Rcc1 {[%emt 0:00:24]} Ra8 {[%emt 0:01:54]} 27. Ra1 {[%emt 0:00:35]} b3 {[%emt 0:01:43]} 28. Ng5 {[%emt 0:03:16]} Bxg5 {[%emt 0:00:49]} 29. Qxg5 {[%emt 0:00:04]} Rdb8 {[%emt 0:01:37]} 30. Ne2 {[%emt 0:03:08]} Bc6 {[%emt 0:06:29]} 31. Rab1 {[%emt 0:03:01]} Ra4 {[%emt 0:01:32]} 32. Qd2 {[%emt 0:01:51]} Rba8 {[%emt 0:01:44]} 33. g4 {[%emt 0:01:59]} Qe7 {[%emt 0:00:45]} 34. g5 {[%emt 0:00:54]} Rf8 {[%emt 0:08:43]} 35. f4 {[%emt 0:02:16]} f6 {[%emt 0:01:06]} 36. Rf1 {[%emt 0:01:02]} f5 {[%emt 0:01:53]} 37. h4 {[%emt 0:01:32]} Kf7 {[%emt 0:00:48]} 38. Ng3 {[%emt 0:01:47]} Rh8 {[%emt 0:01:16]} 39. Qh2 {[%emt 0:00:15]} Raa8 {[%emt 0:01:05]} 40. Kf2 {[%emt 0:01:50] normal} 1/2-1/2